fUST/lending_fUST_20250628
["ID","MTS","AMOUNT","RATE_DAILY","PERIOD"]
[368300617,1751101842410,-1447.26,0.00019452,2]
[368300618,1751101842419,-460.0,0.00019452,2]
[368300619,1751101842429,-954.54,0.00019452,2]
[368300620,1751101842439,-460.0,0.00019452,2]
[368300621,1751101842451,-460.0,0.00019452,2]
[368300622,1751101842460,-186.36518987,0.00019452,2]
[368300623,1751101842470,-563.72,0.00019452,2]
[368300624,1751101842479,-477.63,0.00019452,2]
[368300625,1751101842489,-460.0,0.00019452,2]
[368300626,1751101842498,-460.0,0.00019452,2]
[368300627,1751101842507,-460.0,0.00019452,2]
[368300628,1751101842517,-521.18,0.00019452,2]
[368300629,1751101842526,-460.0,0.00019452,2]
[368300630,1751101842535,-460.0,0.00019452,2]
[368300631,1751101842545,-818.33,0.00019452,2]
[368300632,1751101842554,-530.86,0.00019452,2]
[368300633,1751101842563,-460.0,0.00019452,2]
[368300634,1751101842573,-460.0,0.00019452,2]
[368300635,1751101842582,-181.09163339,0.00019659,2]
[368300636,1751101842591,-290.3134,0.00019672,2]
[368300637,1751101842600,-500.97448561,0.00019672,2]
[368300638,1751101842610,-487.1023781,0.00019672,2]
[368300639,1751101842619,-500.0,0.00019672,2]
[368300640,1751101842630,-540.0,0.00019725,2]
[368300641,1751101842639,-1000.0,0.00019725,2]
[368300642,1751101842648,-460.0,0.00019725,2]
[368300643,1751101842657,-1228.05,0.00019725,2]
[368300644,1751101842667,-460.0,0.00019725,2]
[368300645,1751101842676,-1963.27,0.00019725,2]
[368300646,1751101842686,-460.0,0.00019725,2]
[368300647,1751101842695,-460.0,0.00019725,2]
[368300648,1751101842704,-1665.75,0.00019725,2]
[368300649,1751101842714,-4085.11,0.00019725,2]
[368300650,1751101842723,-1395.93,0.00019725,2]
[368300651,1751101842733,-460.0,0.00019725,2]
[368300652,1751101842743,-460.0,0.00019726,2]
[368300653,1751101842753,-460.0,0.00019726,2]
[368300654,1751101842762,-582.02621637,0.00019726,2]
[368300655,1751101842771,-248.68921015,0.00019726,2]
[368300656,1751101842781,-460.0,0.00019726,2]
[368300657,1751101842790,-460.0,0.00019726,2]
[368300658,1751101842799,-500.0,0.00019726,2]
[368300659,1751101842809,-460.0,0.00019726,2]
[368300660,1751101842818,-460.0,0.00019726,2]
[368300662,1751101842827,-544.92909081,0.00019726,2]
[368300663,1751101842837,-460.0,0.00019726,2]
[368300664,1751101842846,-460.0,0.00019726,2]
[368300665,1751101842855,-554.81406124,0.00019726,2]
[368300666,1751101842865,-460.0,0.00019726,2]
[368300667,1751101842876,-1286.52,0.00019726,2]
[368300669,1751101842885,-460.0,0.00019726,2]
[368300670,1751101842894,-580.0,0.00019726,2]
[368300671,1751101842903,-540.0,0.00019726,2]
[368300672,1751101842912,-460.0,0.00019726,2]
[368300673,1751101842922,-460.0,0.00019726,2]
[368300674,1751101842931,-525.44,0.00019726,2]
[368300676,1751101842941,-460.0,0.00019726,2]
[368300678,1751101842950,-460.0,0.00019726,2]
[368300679,1751101842959,-460.0,0.00019726,2]
[368300680,1751101842968,-829.97,0.00019726,2]
[368300682,1751101842977,-580.0,0.00019726,2]
[368300684,1751101842987,-460.0,0.00019726,2]
[368300685,1751101842996,-371.75323977,0.00019726,2]
[368300687,1751101843005,-460.0,0.00019726,2]
[368300689,1751101843014,-460.0,0.00019726,2]
[368300690,1751101843023,-460.0,0.00019726,2]
[368300692,1751101843032,-557.69,0.00019726,2]
[368300694,1751101843042,-460.0,0.00019726,2]
[368300695,1751101843051,-460.0,0.00019726,2]
[368300696,1751101843060,-460.0,0.00019726,2]
[368300697,1751101843070,-577.44,0.00019726,2]
[368300698,1751101843079,-473.04653521,0.00019726,2]
[368300699,1751101843088,-1470.22,0.00019726,2]
[368300700,1751101843098,-460.0,0.00019726,2]
[368300702,1751101843108,-889.79,0.00019726,2]
[368300703,1751101843117,-460.0,0.00019726,2]
[368300704,1751101843127,-978.04,0.00019726,2]
[368300705,1751101843136,-460.0,0.00019726,2]
[368300706,1751101843145,-460.0,0.00019726,2]
[368300707,1751101843154,-460.0,0.00019726,2]
[368300708,1751101843164,-460.0,0.00019726,2]
[368300709,1751101843173,-2213.07,0.00019726,2]
[368300710,1751101843182,-568.78,0.00019726,2]
[368300711,1751101843192,-585.06,0.00019726,2]
[368300712,1751101843201,-2512.6,0.00019726,2]
[368300713,1751101843211,-460.0,0.00019726,2]
[368300715,1751101843220,-595.83,0.00019726,2]
[368300717,1751101843231,-456.02306291,0.00019726,2]
[368300719,1751101843240,-460.0,0.00019726,2]
[368300720,1751101843249,-460.0,0.00019726,2]
[368300721,1751101843259,-460.0,0.00019726,2]
[368300723,1751101843268,-460.0,0.00019726,2]
[368300724,1751101843277,-460.0,0.00019726,2]
[368300726,1751101843286,-460.0,0.00019726,2]
[368300727,1751101843295,-460.0,0.00019726,2]
[368300728,1751101843305,-552.07,0.00019726,2]
[368300729,1751101843314,-460.0,0.00019726,2]
[368300730,1751101843324,-865.39,0.00019726,2]
[368300731,1751101843333,-528.96,0.00019726,2]
[368300732,1751101843342,-460.0,0.00019726,2]
[368300733,1751101843351,-2384.46,0.00019726,2]
[368300734,1751101843360,-903.23,0.00019726,2]
[368300735,1751101843370,-460.0,0.00019726,2]
[368300736,1751101843379,-460.0,0.00019726,2]
[368300737,1751101843389,-460.0,0.00019726,2]
[368300738,1751101843399,-460.0,0.00019726,2]
[368300739,1751101843408,-460.0,0.00019726,2]
[368300740,1751101843418,-2847.7,0.00019726,2]
[368300741,1751101843427,-684.69,0.00019726,2]
[368300742,1751101843438,-1985.76,0.00019726,2]
[368300743,1751101843450,-601.28832938,0.00019726,2]
[368300744,1751101843459,-460.0,0.00019726,2]
[368300745,1751101843469,-2316.93,0.00019726,2]
[368300746,1751101843478,-460.0,0.00019726,2]
[368300747,1751101843489,-460.0,0.00019726,2]
[368300748,1751101843498,-460.0,0.00019726,2]
[368300749,1751101843507,-460.0,0.00019726,2]
[368300750,1751101843517,-460.0,0.00019726,2]
[368300751,1751101843527,-460.0,0.00019726,2]
[368300752,1751101843536,-460.0,0.00019726,2]
[368300753,1751101843566,-509.86,0.00019726,2]
[368300754,1751101843576,-3306.74,0.00019726,2]
[368300755,1751101843585,-460.0,0.00019726,2]
[368300756,1751101843594,-696.01,0.00019726,2]
[368300757,1751101843604,-460.0,0.00019726,2]
[368300758,1751101843613,-547.7951719,0.00019726,2]
[368300759,1751101843622,-1354.21,0.00019726,2]
[368300760,1751101843632,-460.0,0.00019726,2]
[368300761,1751101843641,-1447.26,0.00019726,2]
[368300762,1751101843650,-954.54,0.00019726,2]
[368300763,1751101843660,-460.0,0.00019726,2]
[368300764,1751101843669,-460.0,0.00019726,2]
[368300765,1751101843678,-563.72,0.00019726,2]
[368300766,1751101843687,-477.63,0.00019726,2]
[368300767,1751101843696,-460.0,0.00019726,2]
[368300768,1751101843705,-460.0,0.00019726,2]
[368300769,1751101843714,-460.0,0.00019726,2]
[368300770,1751101843723,-521.18,0.00019726,2]
[368300771,1751101843732,-460.0,0.00019726,2]
[368300772,1751101843741,-460.0,0.00019726,2]
[368300773,1751101843751,-818.33,0.00019726,2]
[368300774,1751101843760,-530.86,0.00019726,2]
[368300775,1751101843769,-227.37418704,0.00019726,2]
[368300776,1751101843778,-500.0,0.00019758,2]
[368300777,1751101843787,-500.0,0.00019793,2]
[368300778,1751101843796,-500.0,0.00019793,2]
[368300779,1751101843805,-500.0,0.00019793,2]
[368300780,1751101843814,-420.0,0.00019815,2]
[368300781,1751101843828,-500.0,0.00019847,2]
[368300782,1751101843837,-500.0,0.00019871,2]
[368300783,1751101843846,-501.47527516,0.00019871,2]
[368300784,1751101843855,-500.0,0.00019871,2]
[368300785,1751101843863,-500.0,0.00019871,2]
[368300786,1751101843872,-509.68531918,0.0001988,2]
[368300787,1751101843882,-500.0,0.00019896,2]
[368300788,1751101843892,-695.0,0.00019912,2]
[368300789,1751101843901,-500.0,0.0001997,2]
[368300790,1751101843911,-540.0,0.00019999,2]
[368300791,1751101843920,-1228.05,0.00019999,2]
[368300792,1751101843929,-460.0,0.00019999,2]
[368300793,1751101843938,-1963.27,0.00019999,2]
[368300794,1751101843947,-460.0,0.00019999,2]
[368300795,1751101843959,-1665.75,0.00019999,2]
[368300796,1751101843968,-4085.11,0.00019999,2]
[368300797,1751101843977,-1395.93,0.00019999,2]
[368300798,1751101843987,-460.0,0.00019999,2]
[368300799,1751101843996,-460.0,0.0002,2]
[368300800,1751101844005,-575.0,0.0002,2]
[368300801,1751101844015,-460.0,0.0002,2]
[368300802,1751101844024,-460.0,0.0002,2]
[368300803,1751101844033,-422.15348178,0.0002,2]
[368300804,1751101844042,-460.0,0.0002,2]
[368300805,1751101844051,-460.0,0.0002,2]
[368300806,1751101844061,-460.0,0.0002,2]
[368300807,1751101844070,-1286.52,0.0002,2]
[368300808,1751101844080,-452.93,0.0002,2]
[368300809,1751101844089,-580.0,0.0002,2]
[368300810,1751101844099,-460.0,0.0002,2]
[368300811,1751101844108,-525.44,0.0002,2]
[368300812,1751101844117,-314.20416739,0.0002,2]
[368300813,1751101844126,-460.0,0.0002,2]
[368300814,1751101844135,-460.0,0.0002,2]
[368300815,1751101844144,-829.97,0.0002,2]
[368300816,1751101844153,-460.0,0.0002,2]
[368300817,1751101844163,-494.77441597,0.0002,2]
[368300818,1751101844171,-460.0,0.0002,2]
[368300819,1751101844181,-460.0,0.0002,2]
[368300820,1751101844190,-460.0,0.0002,2]
[368300821,1751101844199,-460.0,0.0002,2]
[368300822,1751101844208,-460.0,0.0002,2]
[368300823,1751101844217,-577.44,0.0002,2]
[368300824,1751101844338,-1470.22,0.0002,2]
[368300825,1751101844348,-460.0,0.0002,2]
[368300826,1751101844358,-889.79,0.0002,2]
[368300827,1751101844368,-603.09,0.0002,2]
[368300828,1751101844377,-978.04,0.0002,2]
[368300829,1751101844387,-460.0,0.0002,2]
[368300830,1751101844396,-419.75773258,0.0002,2]
[368300831,1751101844406,-460.0,0.0002,2]
[368300832,1751101844415,-460.0,0.0002,2]
[368300833,1751101844424,-2213.07,0.0002,2]
[368300834,1751101844433,-568.78,0.0002,2]
[368300835,1751101844446,-585.06,0.0002,2]
[368300836,1751101844456,-2512.6,0.0002,2]
[368300837,1751101844465,-460.0,0.0002,2]
[368300838,1751101844475,-595.83,0.0002,2]
[368300839,1751101844484,-460.0,0.0002,2]
[368300840,1751101844493,-460.0,0.0002,2]
[368300841,1751101844502,-460.0,0.0002,2]
[368300842,1751101844512,-460.0,0.0002,2]
[368300843,1751101844521,-460.0,0.0002,2]
[368300844,1751101844530,-460.0,0.0002,2]
[368300845,1751101844540,-460.0,0.0002,2]
[368300846,1751101844565,-552.07,0.0002,2]
[368300847,1751101844574,-460.0,0.0002,2]
[368300848,1751101844584,-865.39,0.0002,2]
[368300849,1751101844593,-528.96,0.0002,2]
[368300850,1751101844603,-460.0,0.0002,2]
[368300851,1751101844613,-2384.46,0.0002,2]
[368300852,1751101844622,-903.23,0.0002,2]
[368300853,1751101844633,-460.0,0.0002,2]
[368300854,1751101844642,-460.0,0.0002,2]
[368300855,1751101844651,-460.0,0.0002,2]
[368300856,1751101844661,-460.0,0.0002,2]
[368300857,1751101844671,-2847.7,0.0002,2]
[368300858,1751101844680,-684.69,0.0002,2]
[368300859,1751101844690,-1985.76,0.0002,2]
[368300860,1751101844700,-460.0,0.0002,2]
[368300861,1751101844709,-2316.93,0.0002,2]
[368300862,1751101844719,-500.0,0.0002,2]
[368300863,1751101844729,-460.0,0.0002,2]
[368300864,1751101844738,-460.0,0.0002,2]
[368300865,1751101844747,-460.0,0.0002,2]
[368300866,1751101844758,-460.0,0.0002,2]
[368300867,1751101844768,-460.0,0.0002,2]
[368300868,1751101844778,-509.86,0.0002,2]
[368300869,1751101844787,-3306.74,0.0002,2]
[368300870,1751101844796,-696.01,0.0002,2]
[368300871,1751101844806,-460.0,0.0002,2]
[368300872,1751101844815,-1354.21,0.0002,2]
[368300873,1751101844825,-1447.26,0.0002,2]
[368300874,1751101844835,-460.0,0.0002,2]
[368300875,1751101844844,-160.0,0.0002,3]
[368300876,1751101844853,-954.54,0.0002,2]
[368300877,1751101844862,-460.0,0.0002,2]
[368300878,1751101844872,-460.0,0.0002,2]
[368300879,1751101844881,-563.72,0.0002,2]
[368300880,1751101844891,-477.63,0.0002,2]
[368300881,1751101844900,-460.0,0.0002,2]
[368300882,1751101844911,-460.0,0.0002,2]
[368300883,1751101844920,-521.18,0.0002,2]
[368300884,1751101844929,-427.84153915,0.0002,2]
[368300885,1751101844939,-460.0,0.0002,2]
[368300886,1751101844948,-818.33,0.0002,2]
[368300887,1751101844957,-530.86,0.0002,2]
[368300888,1751101844967,-917.0,0.0002001,2]
[368300889,1751101844976,-917.0,0.00020053,2]
[368300890,1751101844985,-300.0,0.00020063,2]
[368300891,1751101844995,-165.93352946,0.00020082,2]
[368300892,1751101845004,-1000.0,0.00020164,2]
[368300893,1751101845014,-380.0,0.00020164,2]
[368300894,1751101845023,-296.965011,0.00020187,2]
[368300895,1751101845033,-1000.0,0.0002022,2]
[368300896,1751101845042,-230.28494567,0.00020222,2]
[368300897,1751101845051,-160.0,0.00020222,2]
[368300898,1751101845060,-160.0,0.00020222,2]
[368300899,1751101845069,-214.95397287,0.00020222,2]
[368300900,1751101845078,-160.0,0.00020222,2]
[368300901,1751101845087,-160.0,0.00020222,2]
[368300902,1751101845096,-213.78848551,0.00020222,2]
[368300903,1751101845106,-12564.78152626,0.00020222,2]
[368300904,1751101845115,-837.06984471,0.00020222,2]
[368300905,1751101845125,-160.0,0.00020222,2]
[368300906,1751101845134,-847.18566335,0.00020222,2]
[368300907,1751101845143,-160.0,0.00020222,2]
[368300908,1751101845152,-160.0,0.00020273,2]
[368300909,1751101845161,-175.00328661,0.00020273,2]
[368300910,1751101845170,-460.0,0.00020273,2]
[368300911,1751101845179,-460.0,0.00020273,2]
[368300912,1751101845188,-460.0,0.00020273,2]
[368300913,1751101845198,-460.0,0.00020273,2]
[368300914,1751101845207,-1286.52,0.00020273,2]
[368300915,1751101845217,-460.0,0.00020273,2]
[368300916,1751101845226,-525.44,0.00020273,2]
[368300917,1751101845235,-460.0,0.00020273,2]
[368300918,1751101845244,-460.0,0.00020273,2]
[368300919,1751101845253,-829.97,0.00020273,2]
[368300920,1751101845263,-460.0,0.00020273,2]
[368300921,1751101845272,-460.0,0.00020273,2]
[368300922,1751101845282,-460.0,0.00020273,2]
[368300923,1751101845291,-1228.05,0.00020273,2]
[368300924,1751101845300,-460.0,0.00020273,2]
[368300925,1751101845310,-460.0,0.00020273,2]
[368300926,1751101845319,-460.0,0.00020273,2]
[368300927,1751101845328,-577.44,0.00020273,2]
[368300928,1751101845337,-1470.22,0.00020273,2]
[368300929,1751101845347,-460.0,0.00020273,2]
[368300930,1751101845356,-889.79,0.00020273,2]
[368300931,1751101845365,-978.04,0.00020273,2]
[368300932,1751101845376,-460.0,0.00020273,2]
[368300933,1751101845386,-460.0,0.00020273,2]
[368300934,1751101845395,-460.0,0.00020273,2]
[368300935,1751101845405,-460.0,0.00020273,2]
[368300936,1751101845414,-2213.07,0.00020273,2]
[368300937,1751101845423,-568.78,0.00020273,2]
[368300938,1751101845433,-1963.27,0.00020273,2]
[368300939,1751101845449,-585.06,0.00020273,2]
[368300940,1751101845465,-2512.6,0.00020273,2]
[368300941,1751101845474,-460.0,0.00020273,2]
[368300942,1751101845484,-595.83,0.00020273,2]
[368300943,1751101845493,-460.0,0.00020273,2]
[368300944,1751101845502,-460.0,0.00020273,2]
[368300945,1751101845511,-460.0,0.00020273,2]
[368300946,1751101845520,-460.0,0.00020273,2]
[368300947,1751101845530,-460.0,0.00020273,2]
[368300948,1751101845539,-460.0,0.00020273,2]
[368300949,1751101845548,-460.0,0.00020273,2]
[368300950,1751101845557,-552.07,0.00020273,2]
[368300951,1751101845566,-865.39,0.00020273,2]
[368300952,1751101845575,-528.96,0.00020273,2]
[368300953,1751101845585,-460.0,0.00020273,2]
[368300954,1751101845594,-2384.46,0.00020273,2]
[368300955,1751101845604,-903.23,0.00020273,2]
[368300956,1751101845613,-460.0,0.00020273,2]
[368300957,1751101845623,-1665.75,0.00020273,2]
[368300958,1751101845631,-582.29995357,0.00020273,2]
[368300959,1751101845641,-460.0,0.00020273,2]
[368300960,1751101845650,-2847.7,0.00020273,2]
[368300961,1751101845660,-684.69,0.00020273,2]
[368300962,1751101845669,-1985.76,0.00020273,2]
[368300963,1751101845678,-460.0,0.00020273,2]
[368300964,1751101845687,-2316.93,0.00020273,2]
[368300965,1751101845697,-460.0,0.00020273,2]
[368300966,1751101845706,-460.0,0.00020273,2]
[368300967,1751101845715,-460.0,0.00020273,2]
[368300968,1751101845725,-460.0,0.00020273,2]
[368300969,1751101845734,-460.0,0.00020273,2]
[368300970,1751101845743,-509.86,0.00020273,2]
[368300971,1751101845752,-3306.74,0.00020273,2]
[368300972,1751101845761,-696.01,0.00020273,2]
[368300973,1751101845770,-460.0,0.00020273,2]
[368300974,1751101845779,-1354.21,0.00020273,2]
[368300975,1751101845788,-1447.26,0.00020273,2]
[368300976,1751101845797,-460.0,0.00020273,2]
[368300977,1751101845807,-4085.11,0.00020273,2]
[368300978,1751101845816,-954.54,0.00020273,2]
[368300979,1751101845825,-460.0,0.00020273,2]
[368300980,1751101845834,-460.0,0.00020273,2]
[368300981,1751101845843,-563.72,0.00020273,2]
[368300982,1751101845853,-477.63,0.00020273,2]
[368300983,1751101845862,-460.0,0.00020273,2]
[368300984,1751101845871,-521.18,0.00020273,2]
[368300985,1751101845880,-1395.93,0.00020273,2]
[368300986,1751101845890,-460.0,0.00020273,2]
[368300987,1751101845899,-818.33,0.00020273,2]
[368300988,1751101845907,-530.86,0.00020273,2]
[368300989,1751101845917,-512.10269403,0.00020341,2]
[368300990,1751101845926,-288.66192114,0.00020341,2]
[368300991,1751101845935,-226.77747217,0.00020341,2]
[368300992,1751101845944,-443.30882593,0.00020394,2]
[368300993,1751101845954,-1000.0,0.00020419,2]
[368300994,1751101845964,-1000.0,0.00020444,2]
[368300995,1751101845974,-160.0,0.00020459,3]
[368300996,1751101845983,-881.0,0.00020466,2]
[368300997,1751101845992,-1000.0,0.00020518,2]
[368300998,1751101846002,-12564.78152626,0.00020521,3]
[368300999,1751101846011,-213.78848551,0.00020521,3]
[368301000,1751101846020,-160.0,0.00020521,3]
[368301001,1751101846030,-847.18566335,0.00020521,3]
[368301002,1751101846039,-460.0,0.00020547,2]
[368301004,1751101846048,-500.0,0.00020547,14]
[368301005,1751101846058,-460.0,0.00020547,2]
[368301007,1751101846067,-460.0,0.00020547,2]
[368301008,1751101846077,-1286.52,0.00020547,2]
[368301009,1751101846087,-460.0,0.00020547,2]
[368301010,1751101846097,-525.44,0.00020547,2]
[368301011,1751101846106,-460.0,0.00020547,2]
[368301012,1751101846115,-460.0,0.00020547,2]
[368301013,1751101846124,-829.97,0.00020547,2]
[368301014,1751101846134,-460.0,0.00020547,2]
[368301015,1751101846142,-460.0,0.00020547,2]
[368301016,1751101846152,-460.0,0.00020547,2]
[368301017,1751101846161,-1228.05,0.00020547,2]
[368301018,1751101846170,-460.0,0.00020547,2]
[368301019,1751101846179,-460.0,0.00020547,2]
[368301020,1751101846189,-460.0,0.00020547,2]
[368301021,1751101846198,-577.44,0.00020547,2]
[368301022,1751101846207,-1470.22,0.00020547,2]
[368301023,1751101846216,-438.28632599,0.00020547,2]
[368301024,1751101846227,-889.79,0.00020547,2]
[368301025,1751101846236,-978.04,0.00020547,2]
[368301026,1751101846245,-460.0,0.00020547,2]
[368301027,1751101846254,-460.0,0.00020547,2]
[368301028,1751101846263,-460.0,0.00020547,2]
[368301029,1751101846272,-460.0,0.00020547,2]
[368301030,1751101846281,-2213.07,0.00020547,2]
[368301031,1751101846291,-568.78,0.00020547,2]
[368301032,1751101846300,-1963.27,0.00020547,2]
[368301033,1751101846309,-585.06,0.00020547,2]
[368301034,1751101846318,-2512.6,0.00020547,2]
[368301035,1751101846328,-460.0,0.00020547,2]
[368301036,1751101846337,-595.83,0.00020547,2]
[368301037,1751101846346,-460.0,0.00020547,2]
[368301038,1751101846356,-460.0,0.00020547,2]
[368301039,1751101846365,-310.60241605,0.00020547,2]
[368301040,1751101846374,-460.0,0.00020547,2]
[368301041,1751101846383,-460.0,0.00020547,2]
[368301042,1751101846392,-460.0,0.00020547,2]
[368301043,1751101846402,-460.0,0.00020547,2]
[368301044,1751101846411,-552.07,0.00020547,2]
[368301045,1751101846420,-865.39,0.00020547,2]
[368301046,1751101846429,-528.96,0.00020547,2]
[368301047,1751101846438,-2384.46,0.00020547,2]
[368301048,1751101846449,-903.23,0.00020547,2]
[368301049,1751101846458,-460.0,0.00020547,2]
[368301050,1751101846467,-1665.75,0.00020547,2]
[368301051,1751101846477,-460.0,0.00020547,2]
[368301052,1751101846486,-2847.7,0.00020547,2]
[368301053,1751101846495,-684.69,0.00020547,2]
[368301054,1751101846504,-1985.76,0.00020547,2]
[368301055,1751101846513,-460.0,0.00020547,2]
[368301056,1751101846522,-2316.93,0.00020547,2]
[368301057,1751101846530,-460.0,0.00020547,2]
[368301058,1751101846539,-460.0,0.00020547,2]
[368301059,1751101846548,-460.0,0.00020547,2]
[368301060,1751101846558,-460.0,0.00020547,2]
[368301061,1751101846567,-509.86,0.00020547,2]
[368301062,1751101846576,-460.0,0.00020547,2]
[368301063,1751101846585,-3306.74,0.00020547,2]
[368301064,1751101846594,-696.01,0.00020547,2]
[368301065,1751101846603,-460.0,0.00020547,2]
[368301066,1751101846612,-1354.21,0.00020547,2]
[368301067,1751101846622,-1447.26,0.00020547,2]
[368301068,1751101846631,-460.0,0.00020547,2]
[368301069,1751101846641,-4085.11,0.00020547,2]
[368301070,1751101846650,-954.54,0.00020547,2]
[368301071,1751101846659,-460.0,0.00020547,2]
[368301072,1751101846668,-312.71497975,0.00020547,2]
[368301073,1751101846678,-563.72,0.00020547,2]
[368301074,1751101846686,-477.63,0.00020547,2]
[368301075,1751101846695,-460.0,0.00020547,2]
[368301076,1751101846704,-521.18,0.00020547,2]
[368301077,1751101846713,-1395.93,0.00020547,2]
[368301078,1751101846724,-460.0,0.00020547,2]
[368301079,1751101846732,-818.33,0.00020547,2]
[368301080,1751101846742,-530.86,0.00020547,2]
[368301081,1751101846750,-207.4,0.00020582,2]
[368301082,1751101846760,-500.0,0.00020582,2]
[368301083,1751101846770,-5000.0,0.00020582,2]
[368301084,1751101846779,-500.0,0.00020582,2]
[368301085,1751101846788,-500.0,0.00020582,2]
[368301086,1751101846797,-666.0,0.00020582,2]
[368301087,1751101846807,-500.0,0.00020582,2]
[368301088,1751101846816,-500.0,0.00020582,2]
[368301089,1751101846825,-500.0,0.00020582,2]
[368301090,1751101846834,-500.0,0.00020582,2]
[368301091,1751101846843,-500.0,0.00020582,2]
[368301092,1751101846851,-500.0,0.00020582,2]
[368301093,1751101846860,-500.0,0.00020582,2]
[368301094,1751101846870,-500.0,0.00020582,2]
[368301095,1751101846879,-500.0,0.00020582,2]
[368301096,1751101846888,-500.0,0.00020582,2]
[368301097,1751101846897,-500.0,0.00020582,2]
[368301098,1751101846906,-500.0,0.00020582,2]
[368301099,1751101846917,-500.0,0.00020582,2]
[368301100,1751101846927,-175.04864089,0.00020582,2]
[368301101,1751101846935,-500.0,0.00020582,2]
[368301102,1751101846944,-500.0,0.00020582,2]
[368301103,1751101847048,-500.0,0.00020582,2]
[368301104,1751101847072,-25000.0,0.00020582,2]
[368301105,1751101847081,-3418.08,0.000206,2]
[368301106,1751101847091,-917.0,0.00020635,2]
[368301107,1751101847100,-690.642,0.00020637,2]
[368301108,1751101847109,-454.028,0.00020671,2]
[368301109,1751101847118,-716.195754,0.00020692,2]
[368301110,1751101847128,-742.6949969,0.00020747,2]
[368301111,1751101847137,-1500.0,0.00020768,2]
[368301112,1751101847146,-770.17471178,0.00020802,2]
[368301113,1751101847155,-460.0,0.00020821,2]
[368301114,1751101847165,-460.0,0.00020821,2]
[368301115,1751101847174,-460.0,0.00020821,2]
[368301116,1751101847183,-1286.52,0.00020821,2]
[368301117,1751101847192,-460.0,0.00020821,2]
[368301118,1751101847201,-525.44,0.00020821,2]
[368301119,1751101847210,-460.0,0.00020821,2]
[368301120,1751101847219,-416.43071939,0.00020821,2]
[368301121,1751101847228,-829.97,0.00020821,2]
[368301122,1751101847238,-460.0,0.00020821,2]
[368301123,1751101847247,-460.0,0.00020821,2]
[368301124,1751101847256,-167.8195284,0.00020821,2]
[368301125,1751101847265,-1228.05,0.00020821,2]
[368301126,1751101847274,-460.0,0.00020821,2]
[368301127,1751101847283,-460.0,0.00020821,2]
[368301128,1751101847292,-460.0,0.00020821,2]
[368301129,1751101847302,-577.44,0.00020821,2]
[368301130,1751101847310,-1470.22,0.00020821,2]
[368301131,1751101847320,-889.79,0.00020821,2]
[368301132,1751101847329,-978.04,0.00020821,2]
[368301133,1751101847338,-460.0,0.00020821,2]
[368301134,1751101847348,-460.0,0.00020821,2]